[Event "15th Paleochora Open 2022"]
[Site "Paleochora"]
[Date "2022.07.18"]
[Round "3.14"]
[White "Markidis, Konstantinos"]
[Black "Ali Marandi, Cemil Can"]
[Result "1/2-1/2"]
[ECO "C76"]
[WhiteElo "2259"]
[BlackElo "2561"]
[Annotator "TA"]
[PlyCount "64"]
[EventDate "2022.07.17"]
[EventType "swiss"]
[EventCountry "GRE"]
[SourceTitle "playchess.com"]
[Source "ChessBase"]
[SourceQuality "1"]
[TimeControl "40/5400+30:900+30"]

{[%evp 14,64,36,28,30,26,29,30,39,34,43,43,65,32,55,62,55,35,35,32,32,33,35,13,95,14,59,66,113,114,102,92,154,149,169,134,135,134,124,116,110,118,204,204,203,127,158,126,124,133,127,137,118]} 1. e4 {[%emt 0:00:05]} e5 {[%emt 0:00:04]} 2. Nf3 {[%emt 0:00:08]} Nc6 {[%emt 0:00:04]} 3. Bb5 {[%emt 0:00:17]} g6 {[%emt 0:00:08]} 4. c3 {[%emt 0:01:41]} a6 {[%emt 0:00:14]} 5. Ba4 {[%emt 0:05:58]} d6 {[%emt 0:00:26]} 6. O-O {[%emt 0:00:23]} Bg7 {[%emt 0:00:06]} 7. d4 {[%emt 0:00:12]} Bd7 {[%emt 0:00:07]} 8. h3 {[%emt 0:00:06]} Nf6 {[%emt 0:00:43] C76: Ruy Lopez: Deferred Steinitz: 5 c3 Bd7 6 d4 g6.} 9. Re1 {[%emt 0:00:48]} O-O {[%emt 0:00:29]} 10. Bc2 {[%emt 0:02:08]} Re8 {[%emt 0:01:45] White has an edge.} 11. Nbd2 {[%emt 0:00:26][%cal Bb1d2,Bd2f1,Bf1h2][%mdl 32]} h6 {[%emt 0:02:18]} 12. Nf1 {[%emt 0:02:49]} Nh5 {[%emt 0:01:23] [#]} 13. N1h2 $146 {[%emt 0:12:28]} ({Predecessor:} 13. Be3 Qf6 14. N1h2 Nf4 15. dxe5 Nxe5 16. Nxe5 Rxe5 17. Ng4 Bxg4 18. Qxg4 Ne6 19. f4 {½-½ (55) Jones,G (2688)-Flores,D (2602) Khanty-Mansiysk 2019}) 13... Nf4 {[%emt 0:15:38]} 14. Bxf4 {[%emt 0:05:26]} exf4 {[%emt 0:00:03]} 15. Qd2 {[%emt 0:05:48]} g5 {[%emt 0:01:01]} 16. Rad1 {[%emt 0:02:07]} Ne7 {[%emt 0:03:42]} 17. e5 {[%emt 0:05:35]} Ng6 {[%emt 0:03:25]} 18. Be4 {[%emt 0:16:47][%cal Bc2e4,Be4b7,Bb7d5][%mdl 32]} h5 {[%emt 0:09:25]} (18... dxe5 $11 {keeps the balance.} 19. dxe5 (19. Bxb7 Rb8 $11) 19... Ba4 20. Qxd8 (20. Bxb7 Bxd1 21. Bxa8 Bxf3 $15) 20... Raxd8) 19. exd6 {[%emt 0:06:38]} ({Much less strong is} 19. Bxb7 Rb8 20. Bxa6 g4 $14) (19. Qc2 $16 Nf8 20. exd6 (20. Bxb7 Rb8 $14) 20... cxd6 21. Bxb7 Rxe1+ 22. Nxe1) 19... cxd6 {[%emt 0:00:49]} (19... Rxe4 $5 20. Rxe4 cxd6 $16) 20. Bxb7 {[%emt 0:01:19]} Ra7 {[%emt 0:03:33]} (20... Rb8 $14 21. Rxe8+ (21. Bxa6 Rxe1+ 22. Nxe1 Qb6 $16) 21... Qxe8) 21. Rxe8+ $16 {[%emt 0:00:41]} Qxe8 {[%emt 0:01:47]} 22. Bd5 {[%emt 0:00:42]} Qd8 {[%emt 0:01:33]} (22... Bh6 $142) 23. Qc2 {[%emt 0:05:11] [#] Strongly threatening Qxg6.} Nf8 {[%emt 0:07:49]} 24. Qb3 {[%emt 0:05:10]} Bf5 {[%emt 0:00:48]} 25. Re1 {[%emt 0:01:13]} g4 {[%emt 0:03:47]} 26. hxg4 {[%emt 0:00:09]} hxg4 {[%emt 0:00:03]} 27. Nd2 {[%emt 0:00:15] White is more active.} Re7 {[%emt 0:00:47]} (27... Ng6 $16 28. Nhf1 Nf8) 28. Rxe7 $18 {[%emt 0:00:38]} Qxe7 {[%emt 0:00:01]} 29. Qd1 {[%emt 0:00:22] Against Qe1+} g3 {[%emt 0:06:15]} 30. Nhf1 {[%emt 0:00:57]} gxf2+ {[%emt 0:00:43]} 31. Kxf2 {[%emt 0:00:13]} Ne6 {[%emt 0:03:59][%cal Oe6d4]} 32. Nf3 {[%emt 0:00:32]} Nc7 {[%emt 0:03:04] Weighted Error Value: White=0.15 (very precise) /Black=0.23 (precise)} 1/2-1/2

[Event "15th Paleochora Open 2022"]
[Site "Paleochora"]
[Date "2022.07.18"]
[Round "3.15"]
[White "Basso, Pier Luigi"]
[Black "Ayza Leon, David"]
[Result "1-0"]
[ECO "A65"]
[WhiteElo "2561"]
[BlackElo "2278"]
[Annotator "TA"]
[PlyCount "77"]
[EventDate "2022.07.17"]
[EventType "swiss"]
[EventCountry "GRE"]
[SourceTitle "playchess.com"]
[Source "ChessBase"]
[SourceQuality "1"]
[TimeControl "40/5400+30:900+30"]

{[%evp 17,77,15,31,0,8,13,25,13,28,20,19,25,26,0,20,36,97,81,108,106,140,137,151,152,157,127,151,112,171,86,241,35,31,34,34,39,313,294,298,-1371,68,80,91,0,424,304,291,279,350,304,295,281,461,459,475,474,638,493,638,638,855,825]} 1. d4 {[%emt 0:00:02] Stohl,I} Nf6 {[%emt 0:00:34]} 2. c4 {[%emt 0:00:05]} g6 {[%emt 0:00:47]} 3. Nc3 {[%emt 0:00:08]} Bg7 {[%emt 0:00:05]} 4. e4 {[%emt 0:00:12]} d6 {[%emt 0:00:06]} 5. f3 {[%emt 0:00:04]} O-O {[%emt 0:00:47]} 6. Nge2 {[%emt 0:00:05]} c5 {[%emt 0:01:00]} 7. d5 {[%emt 0:00:08]} e6 {[%emt 0:00:31]} 8. Ng3 {[%emt 0:00:07]} exd5 {[%emt 0:00:37]} 9. cxd5 {[%emt 0:00:06]} h5 {[%emt 0:03:34]} 10. Be2 {[%emt 0:01:23] A65: Modern Benoni: 6 e4.} Nh7 {[%emt 0:03:35] Inhibits Bg5. 10...Nh7 has become a bit dusty these days.} 11. Be3 {[%emt 0:00:18]} h4 {[%emt 0:01:08]} 12. Nf1 {[%emt 0:02:23] White has an edge.} f5 {[%emt 0:00:14]} 13. exf5 {[%emt 0:01:44]} Bxf5 {[%emt 0:00:21] [#]} 14. g4 $146 {[%emt 0:00:16]} ({Predecessor:} 14. Bf2 b5 15. a3 a6 16. Ne3 Nd7 17. g4 hxg3 18. hxg3 c4 19. Nxf5 gxf5 20. Kf1 {1-0 (50) Dreev,A (2690)-Tkachiev,V (2642) Shanghai 2001 CBM 085 [Stohl,I]}) 14... Bd7 {[%emt 0:00:05]} 15. Nd2 {[%emt 0:06:30]} Qe7 {[%emt 0:11:29]} 16. Nce4 $36 {[%emt 0:01:20][%mdl 2048] White is more active.} b5 {[%emt 0:07:42] Prevents Nc4.} (16... Na6 $14) 17. a4 $1 $16 {[%emt 0:00:42]} Nf6 {[%emt 0:06:15]} 18. Bg5 {[%emt 0:04:42]} Qe5 {[%emt 0:01:49]} 19. Bxf6 {[%emt 0:01:46]} Bxf6 {[%emt 0:00:41]} 20. axb5 {[%emt 0:00:52] aiming for Nc4.} Qxb2 {[%emt 0:08:50]} 21. Rb1 {[%emt 0:01:02]} Qd4 {[%emt 0:00:58]} 22. Nc4 {[%emt 0:02:13][%cal Bd2c4,Bc4b6,Bb6d7][%mdl 32]} a5 {[%emt 0:05:50]} (22... Be8 $16) 23. bxa6 {[%emt 0:04:31]} (23. Ncxd6 $6 a4 $16) (23. Qd2 $18) 23... Nxa6 $2 {[%emt 0:01:45]} (23... Rxa6 $16 24. Ncxd6 Ra4) 24. Qxd4 $2 {[%emt 0:00:15]} (24. Nexd6 Nb4 25. Qxd4 Bxd4 $15) (24. Nb6 $1 $18 {[%cal Rb6d7]} Rfd8 25. Nxa8 Rxa8 26. Nxf6+ (26. Nxd6 Nb4 $16) 26... Qxf6 27. Bxa6 Rxa6 28. O-O) 24... Bxd4 $14 {[%emt 0:00:06] A strong pair of Bishops.} 25. Nb6 {[%emt 0:01:47]} (25. Nexd6 Nb4 26. Nb6 Ra7 27. Nxd7 Rxd7 $15) 25... Rfb8 {[%emt 0:04:37][%cal Oc5c4] White must now prevent ...c4!} 26. Kd2 {[%emt 0:00:41]} Ra7 {[%emt 0:03:49][%mdl 8192]} (26... Nb4 $1 $14 27. Nxd7 Ra2+ 28. Kd1 Rba8) 27. Nxd7 $18 {[%emt 0:00:36]} (27. Nxd6 Nb4 28. Nxd7 Rxd7 $11) 27... Rxb1 {[%emt 0:00:07]} 28. Rf1 {[%emt 0:00:06][%mdl 8192]} (28. Rxb1 $18 Nb4 29. Nb6 (29. Nxd6 Rxd7 30. Ne4 Nxd5 $14)) 28... Rd1+ $2 {[%emt 0:00:30]} 29. Rxd1 $14 {[%emt 0:00:29] Bxa6 is the strong threat. White is more active.} Nb4 {[%emt 0:00:13] [#]} 30. Rb1 {[%emt 0:01:36]} Ra4 $2 {[%emt 0:01:54][%mdl 8192]} (30... Rxd7 $11 {and Black has nothing to worry.} 31. Rf1 Kg7) 31. Nb6 {[%emt 0:00:30]} Ra2+ {[%emt 0:00:00]} 32. Kd1 {[%emt 0:00:17]} h3 {[%emt 0:02:39]} 33. f4 {[%emt 0:12:41] Prevents Be5.} Bg1 {[%emt 0:09:13]} 34. Ng5 {[%emt 0:00:14]} ({Weaker is} 34. Nxd6 Bxh2 35. Ne4 (35. Bc4 Rg2 $11) 35... Bxf4 $11) 34... Be3 $2 {[%emt 0:02:21]} (34... Bxh2 35. Nxh3 Ra3) 35. Nxh3 $18 {[%emt 0:02:21] White is clearly winning.} Rd2+ {[%emt 0:01:04]} 36. Ke1 {[%emt 0:00:02] Strongly threatening Nc4.} Nc2+ {[%emt 0:00:10]} 37. Kf1 {[%emt 0:00:05] And now Nc4 would win.} Nd4 {[%emt 0:00:19]} 38. Re1 {[%emt 0:04:05]} Rc2 {[%emt 0:05:46]} 39. Bd3 {[%emt 0:00:59][%csl LRc2,LRe3,LRg6] Weighted Error Value: White=0.45/Black=0.82} 1-0

[Event "15th Paleochora Open 2022"]
[Site "Paleochora"]
[Date "2022.07.18"]
[Round "3.16"]
[White "Kourkoulos-Arditis, Stamatis"]
[Black "Milonakis, Georgios"]
[Result "1-0"]
[ECO "E05"]
[WhiteElo "2535"]
[BlackElo "2256"]
[Annotator "TA"]
[PlyCount "119"]
[EventDate "2022.07.17"]
[EventType "swiss"]
[EventCountry "GRE"]
[SourceTitle "playchess.com"]
[Source "ChessBase"]
[SourceQuality "1"]
[TimeControl "40/5400+30:900+30"]

{[%evp 15,119,12,20,16,10,4,22,22,16,21,21,12,21,0,37,36,36,34,38,33,35,39,39,32,44,43,45,27,27,21,37,25,58,58,42,38,150,134,163,163,165,165,245,234,342,342,327,287,279,207,243,231,250,245,259,256,260,249,265,249,265,257,240,197,291,310,362,357,315,281,281,281,281,268,322,315,311,269,282,270,278,270,447,412,530,494,623,640,618,635,643,608,493,472,426,303,597,656,662,506,1243,1243,1096,1053,29983,29984]} 1. d4 {[%emt 0:00:03]} Nf6 {[%emt 0:01:27]} 2. c4 {[%emt 0:00:04]} e6 {[%emt 0:00:00]} 3. Nf3 {[%emt 0:00:05]} d5 {[%emt 0:00:00]} 4. g3 {[%emt 0:00:08]} Be7 {[%emt 0:00:12]} 5. Bg2 {[%emt 0:00:05]} O-O {[%emt 0:00:23]} 6. O-O {[%emt 0:00:04]} dxc4 {[%emt 0:00:39]} 7. Qc2 {[%emt 0:00:05]} a6 {[%emt 0:01:01]} 8. a4 {[%emt 0:00:05]} Bd7 {[%emt 0:01:33]} 9. Rd1 {[%emt 0:01:24] E05: Open Catalan: 5 Nf3 Be7.} Bc6 {[%emt 0:02:50]} 10. Bg5 $1 {[%emt 0:00:09][%mdl 4] is now more promising than 10.Nc3.} Nbd7 {[%emt 0:06:05]} 11. Nbd2 {[%emt 0:00:44] The position is equal.} h6 {[%emt 0:03:24]} 12. Bxf6 {[%emt 0:00:05]} Nxf6 {[%emt 0:04:02]} 13. Nxc4 {[%emt 0:00:13]} Be4 {[%emt 0:06:01]} 14. Qb3 {[%emt 0:01:50]} a5 {[%emt 0:00:47]} 15. Nfe5 {[%emt 0:03:14] [#] Strongly threatening Bxe4.} Bxg2 $146 {[%emt 0:02:34]} ({Predecessor:} 15... Bd5 16. Rac1 Re8 17. Qc2 c6 18. e4 Bxc4 19. Qxc4 Qb6 20. d5 cxd5 21. exd5 Bb4 22. dxe6 Rxe6 {½-½ (59) Grischuk,A (2742)-Adams,M (2751) Sharjah 2017}) 16. Kxg2 {[%emt 0:00:06]} Bb4 {[%emt 0:04:28]} 17. Rac1 {[%emt 0:08:40]} Qe7 {[%emt 0:13:07]} 18. Qf3 {[%emt 0:01:41]} c6 {[%emt 0:03:51]} 19. e3 {[%emt 0:05:24]} Rfd8 {[%emt 0:00:51]} 20. h4 {[%emt 0:14:13]} Rab8 {[%emt 0:07:56]} 21. Nd3 {[%emt 0:04:14]} Bd6 {[%emt 0:04:20]} 22. Nxd6 {[%emt 0:10:17]} Qxd6 {[%emt 0:00:54]} 23. Rc5 {[%emt 0:01:07]} Qc7 {[%emt 0:03:30]} 24. g4 {[%emt 0:04:04][%cal Bg3g4,Bg4g5,Bg5h6][%mdl 32]} Nd7 {[%emt 0:07:56]} 25. Rh5 {[%emt 0:03:41]} Qd6 {[%emt 0:05:59] [#] White stays focused until the end.} (25... Nf6 $1 $14) 26. g5 $1 $16 {[%emt 0:05:10] White is more active.} ({Don't take} 26. Rxa5 Ra8 27. Rxa8 Rxa8 $16) 26... Qd5 {[%emt 0:04:34]} 27. gxh6 {[%emt 0:00:27]} Qxf3+ {[%emt 0:00:18]} 28. Kxf3 {[%emt 0:00:04]} g6 {[%emt 0:00:59]} (28... gxh6 {is a better defense.} 29. Rg1+ (29. Rxa5 Ra8 $16) (29. Rxh6 Kg7 $16) 29... Kh7) 29. Rxa5 $18 {[%emt 0:02:20]} Nf6 {[%emt 0:02:30]} (29... Kh7 {might work better.} 30. Rg5 Ra8) 30. Ra7 {[%emt 0:05:38]} Rd5 {[%emt 0:02:30]} 31. Nf4 {[%emt 0:02:25]} Rd7 {[%emt 0:00:06]} 32. Ra5 {[%emt 0:02:00]} b5 {[%emt 0:04:55]} 33. axb5 {[%emt 0:01:01]} cxb5 {[%emt 0:00:07]} 34. Rc1 {[%emt 0:00:32]} Kh7 {[%emt 0:04:20]} 35. Rc5 {[%emt 0:00:50]} Kxh6 {[%emt 0:01:00]} 36. Raxb5 {[%emt 0:00:33]} Rdb7 {[%emt 0:00:05]} 37. Rxb7 {[%emt 0:00:41]} Rxb7 {[%emt 0:00:03][%mdl 4096] Endgame KRN-KRN} 38. Nd3 {[%emt 0:00:17]} Nd5 {[%emt 0:01:29]} 39. e4 {[%emt 0:02:04]} Nf6 {[%emt 0:01:32]} (39... Nb4 {was necessary.}) 40. b4 {[%emt 0:00:00]} Rd7 {[%emt 0:00:00]} 41. Ne5 {[%emt 0:05:34]} Rxd4 {[%emt 0:02:17]} 42. Nxf7+ {[%emt 0:00:09]} Kg7 {[%emt 0:00:27]} 43. Ng5 {[%emt 0:00:19]} Rxb4 {[%emt 0:01:25]} 44. Nxe6+ {[%emt 0:00:21]} Kh6 {[%emt 0:00:37]} 45. Rc8 {[%emt 0:02:10]} Kh7 {[%emt 0:01:28] Inhibits Rh8+.} 46. Ng5+ {[%emt 0:00:20]} Kg7 {[%emt 0:01:45]} 47. Rc7+ {[%emt 0:00:22]} Kg8 {[%emt 0:00:18]} 48. Ra7 {[%emt 0:05:46]} Rc4 $2 {[%emt 0:03:30] [#]} (48... Nh5 49. Ra8+ Kg7 50. Ne6+ Kf7) 49. Kf4 {[%emt 0:00:47]} Nh5+ {[%emt 0:00:36]} 50. Ke5 {[%emt 0:00:12]} Rc2 {[%emt 0:00:24]} 51. f3 {[%emt 0:01:39]} Rh2 {[%emt 0:00:37]} 52. Ra8+ {[%emt 0:00:19]} Kg7 {[%emt 0:00:07]} 53. Ne6+ {[%emt 0:00:02]} Kh7 {[%emt 0:01:36]} 54. Ra6 {[%emt 0:01:05]} Kg8 {[%emt 0:01:29]} 55. Nf4 {[%emt 0:04:09]} Rxh4 $2 {[%emt 0:02:33]} (55... Nxf4 56. Kxf4 Kf7) 56. Nxg6 {[%emt 0:00:27]} Rh1 {[%emt 0:00:10]} 57. Ne7+ {[%emt 0:01:40]} Kf7 {[%emt 0:00:38]} (57... Kf8 $142 58. Nf5 Kf7) 58. Ra7 {[%emt 0:00:57]} Rf1 {[%emt 0:00:36]} 59. f4 {[%emt 0:00:09]} Ng3 {[%emt 0:01:59]} 60. Nf5+ {[%emt 0:00:09] Weighted Error Value: White=0.11 (very precise) /Black=0.36} 1-0

[Event "15th Paleochora Open 2022"]
[Site "Paleochora"]
[Date "2022.07.18"]
[Round "3.18"]
[White "Levi, Netanel"]
[Black "Antic, Dejan"]
[Result "0-1"]
[ECO "C00"]
[WhiteElo "2193"]
[BlackElo "2452"]
[Annotator "TA"]
[PlyCount "64"]
[EventDate "2022.07.17"]
[EventType "swiss"]
[EventCountry "GRE"]
[SourceTitle "playchess.com"]
[Source "ChessBase"]
[SourceQuality "1"]
[TimeControl "40/5400+30:900+30"]

{[%evp 12,64,18,13,17,10,11,14,10,12,12,-12,-32,-41,-35,-56,14,-32,-35,-45,-32,-47,-21,-24,-14,-15,-8,-43,-60,-37,0,-121,-115,-110,-116,-189,-89,-93,-79,-82,-80,-102,-90,-216,-211,-210,-214,-216,-237,-759,-759,-759,-750,-806,-768]} 1. e4 {[%emt 0:00:03]} c5 {[%emt 0:00:43]} 2. Nf3 {[%emt 0:00:06]} e6 {[%emt 0:00:06]} 3. g3 {[%emt 0:00:19]} Nc6 {[%emt 0:01:02]} 4. Bg2 {[%emt 0:00:03]} Nf6 {[%emt 0:00:31]} 5. Qe2 {[%emt 0:00:08]} d6 {[%emt 0:00:48][%cal Bd7d6,Bd6d5][%mdl 32]} 6. O-O {[%emt 0:00:18]} Be7 {[%emt 0:00:09]} 7. c3 {[%emt 0:00:40]} O-O {[%emt 0:01:02] C00: French: Unusual White 2nd moves.} 8. d4 {[%emt 0:00:41]} d5 {[%emt 0:00:21]} 9. e5 {[%emt 0:00:28]} Nd7 {[%emt 0:02:32] The position is equal.} 10. h4 {[%emt 0:04:48] is the legacy move (10.Be3).} a5 {[%emt 0:04:17]} 11. a4 {[%emt 0:01:56]} b6 {[%emt 0:00:41]} 12. Qd1 {[%emt 0:04:39]} Ba6 {[%emt 0:04:01]} 13. Re1 {[%emt 0:00:03]} Rc8 {[%emt 0:07:50]} (13... b5 $15) 14. Bf1 {[%emt 0:00:51]} (14. Na3 $11 {feels stronger.}) 14... Bxf1 $15 {[%emt 0:00:48]} 15. Kxf1 {[%emt 0:00:14] [#]} cxd4 $146 {[%emt 0:03:15]} ({Predecessor:} 15... f6 16. exf6 Nxf6 17. Kg2 Ne4 18. Nbd2 cxd4 19. Nxe4 dxe4 20. Nxd4 Nxd4 21. Qxd4 Bc5 22. Qxe4 Rxf2+ {0-1 (52) Safarli,E (2660)-Grachev,B (2683) Khanty-Mansiysk 2013}) 16. cxd4 {[%emt 0:00:02]} f6 {[%emt 0:04:27]} (16... Bb4 $5 {[%cal Rb4e1]} 17. Nc3 f6 18. exf6 Qxf6 $11) 17. exf6 {[%emt 0:04:02]} Nxf6 {[%emt 0:04:04]} 18. Ng5 {[%emt 0:05:18]} Qd7 {[%emt 0:15:37]} 19. Nc3 {[%emt 0:06:14]} Bd6 {[%emt 0:03:06]} 20. Kg2 {[%emt 0:06:19]} (20. Nxe6 Rce8 21. Nf4 (21. Nxf8 Qh3+ 22. Kg1 Ng4 23. Be3 Qh2+ 24. Kf1 Rxe3) 21... Rxe1+ 22. Kxe1 Bxf4 23. Bxf4 Qf5 $17) (20. Rxe6 $2 h6 21. Rxd6 (21. Nb5 $2 hxg5 22. Rxf6 Rxf6 $19) 21... Qxd6 $19) 20... e5 {[%emt 0:02:31]} 21. Nb5 {[%emt 0:01:22]} (21. dxe5 $11 {was the only way to keep the balance.} Bxe5 22. Nf3) 21... Nxd4 {[%emt 0:04:59]} 22. Nxd4 {[%emt 0:01:17]} exd4 {[%emt 0:00:05]} 23. Qxd4 {[%emt 0:00:50]} (23. Ne6 $17) 23... h6 {[%emt 0:03:30]} (23... Qf5 $1 $19 {has better winning chances. aiming for ...Rc2.} 24. Bd2 Rc2) 24. Nh3 $17 {[%emt 0:03:26]} Qf5 {[%emt 0:03:27] ...Rc4 is the strong threat.} 25. Bf4 {[%emt 0:03:45] [#]} Rc4 $1 $36 {[%emt 0:01:18][%mdl 2048] Black is really pushing.} 26. Qe3 {[%emt 0:06:08]} Bc5 {[%emt 0:04:25] Black is more active.} 27. Qf3 {[%emt 0:09:03] This costs White the game.} (27. Qe6+ $17 Qxe6 28. Rxe6) 27... Ne4 $19 {[%emt 0:01:23] Hoping for ...g5.} 28. Rad1 {[%emt 0:02:34]} g5 {[%emt 0:05:40]} 29. hxg5 {[%emt 0:00:12]} hxg5 {[%emt 0:00:11][%cal Bh6g5,Bg5g4,Bg4h3][%mdl 32] The board is on fire.} 30. Rxe4 $2 {[%emt 0:06:35] [#]} (30. Nxg5 Nxg5 31. Qxd5+ Kg7 32. Qd7+ (32. Qxc4 $2 {leads to mate.} Qh3+ 33. Kg1 Nf3#) (32. Bxg5 Qxf2+ 33. Kh3 Rh8+ 34. Bh4 Rhxh4+ 35. gxh4 Rxh4#) 32... Rf7 33. Qxf5 Rxf5 34. Re2) 30... g4 $1 {[%emt 0:01:45][%mdl 64] Zwischenzug, Double Attack. Black is clearly winning.} ({Weaker is} 30... dxe4 31. Qb3 gxf4 32. Qxc4+ Qf7 33. Qxf7+ (33. Qxe4 fxg3 34. Qg4+ Qg7 $16) 33... Kxf7 34. Nxf4 $16) ({And not} 30... Rxe4 31. Nxg5 Rd4 32. Re1 Qxg5 33. Bxg5 $11) 31. Qd3 {[%emt 0:03:15]} Qxe4+ {[%emt 0:01:38]} 32. Qxe4 {[%emt 0:00:15]} gxh3+ {[%emt 0:00:05] Weighted Error Value: White=0.42/Black=0.11 (very precise)} 0-1

[Event "15th Paleochora Open 2022"]
[Site "Paleochora"]
[Date "2022.07.19"]
[Round "4.1"]
[White "Hamitevici, Vladimir"]
[Black "Stremavicius, Titas"]
[Result "1/2-1/2"]
[ECO "D35"]
[WhiteElo "2473"]
[BlackElo "2532"]
[Annotator "TA"]
[PlyCount "174"]
[EventDate "2022.07.17"]
[EventType "swiss"]
[EventCountry "GRE"]
[SourceTitle "playchess.com"]
[Source "ChessBase"]
[SourceQuality "1"]
[TimeControl "40/5400+30:900+30"]

{[%evp 22,174,35,36,39,44,34,38,39,39,47,45,52,38,52,38,48,48,45,46,52,40,56,52,50,55,48,32,38,20,18,25,24,21,79,79,79,79,79,79,84,56,56,56,56,56,56,56,56,56,56,56,83,83,84,84,84,0,84,84,84,84,84,84,84,49,49,49,49,48,48,48,48,14,14,14,14,14,14,14,14,14,14,14,14,14,14,14,14,14,14,14,14,11,11,11,11,11,11,11,11,0,0,0,0,0,0,0,0,0,11,0,0,0,11,0,11,0,11,11,11,0,11,0,0,0,0,0,0,0,0,0,0,0,8,0,0,7,11,11,11,11,11,11,11,11,11,11,11,11,11,11,11,0,0]} 1. d4 {[%emt 0:00:20]} d5 {[%emt 0:00:08]} 2. c4 {[%emt 0:00:30]} e6 {[%emt 0:00:07]} 3. Nc3 {[%emt 0:00:44]} Nf6 {[%emt 0:00:10]} 4. cxd5 {[%emt 0:00:28]} exd5 {[%emt 0:00:04]} 5. Bg5 {[%emt 0:00:10]} Be7 {[%emt 0:00:17]} 6. e3 {[%emt 0:00:39]} O-O {[%emt 0:00:24]} 7. Bd3 {[%emt 0:01:08]} h6 {[%emt 0:00:18]} 8. Bf4 {[%emt 0:05:53]} c5 {[%emt 0:00:21]} 9. Nf3 {[%emt 0:05:27]} a6 {[%emt 0:11:51]} 10. dxc5 {[%emt 0:03:45]} Bxc5 {[%emt 0:02:56]} 11. O-O {[%emt 0:00:17]} Nc6 {[%emt 0:03:40]} 12. Rc1 {[%emt 0:01:17]} Bd6 {[%emt 0:05:04]} 13. Bxd6 {[%emt 0:25:13]} Qxd6 {[%emt 0:00:10]} 14. h3 {[%emt 0:00:55]} Rd8 {[%emt 0:12:36]} 15. Ne2 {[%emt 0:00:53]} Qb4 {[%emt 0:00:26]} 16. Qc2 {[%emt 0:02:12]} Bd7 {[%emt 0:00:24]} 17. a3 {[%emt 0:01:06]} Qb6 {[%emt 0:00:21]} 18. Qc5 {[%emt 0:05:29]} Qxc5 {[%emt 0:05:37]} 19. Rxc5 {[%emt 0:00:03]} Ne4 {[%emt 0:02:42]} 20. Bxe4 {[%emt 0:02:22]} dxe4 {[%emt 0:01:38]} 21. Nfd4 {[%emt 0:00:02]} Rac8 {[%emt 0:03:07]} 22. Rfc1 {[%emt 0:02:40]} f6 {[%emt 0:00:29]} 23. Nxc6 {[%emt 0:00:58]} Rxc6 {[%emt 0:00:34]} 24. Rxc6 {[%emt 0:02:51]} Bxc6 {[%emt 0:03:19]} 25. Nd4 {[%emt 0:01:31]} Rc8 $1 {[%emt 0:04:47]} 26. Nf5 {[%emt 0:10:44]} Kf8 $1 {[%emt 0:01:56]} 27. Rc4 {[%emt 0:02:13]} Rd8 {[%emt 0:17:13]} (27... g6 $11 28. Nd6 (28. Nxh6 Ke7 $11) 28... Rd8 29. Nxe4 Ke7) 28. Nd4 $16 {[%emt 0:00:10]} Rc8 {[%emt 0:00:06]} 29. Nxc6 {[%emt 0:01:37]} Rxc6 {[%emt 0:00:05]} 30. Rxe4 {[%emt 0:00:36]} a5 {[%emt 0:04:50]} 31. g4 {[%emt 0:12:35]} Rc2 {[%emt 0:01:28]} 32. b4 {[%emt 0:00:39]} Ra2 {[%emt 0:00:05]} 33. bxa5 {[%emt 0:04:05]} Rxa3 {[%emt 0:03:03]} 34. Rb4 {[%emt 0:00:43]} Rxa5 {[%emt 0:00:06]} 35. Rxb7 {[%emt 0:00:05]} h5 {[%emt 0:00:08]} 36. Kg2 {[%emt 0:04:34]} hxg4 {[%emt 0:00:31]} 37. hxg4 {[%emt 0:00:05]} g5 {[%emt 0:01:23]} 38. Kg3 {[%emt 0:02:58]} Ra3 {[%emt 0:00:25]} 39. Kg2 {[%emt 0:01:12]} (39. Rb5 $16) 39... Ra4 {[%emt 0:01:10]} (39... Ra5 $1 $11 {remains equal.}) 40. Kf3 {[%emt 0:00:00]} Ra2 {[%emt 0:00:00]} 41. Rh7 {[%emt 0:05:44]} Rb2 {[%emt 0:00:56]} 42. Kg2 {[%emt 0:04:13]} Rb4 {[%emt 0:00:31]} 43. f3 {[%emt 0:00:13]} Kg8 {[%emt 0:01:29]} 44. Rd7 {[%emt 0:00:20]} Rb2+ {[%emt 0:01:11]} 45. Kg3 {[%emt 0:00:23]} Re2 {[%emt 0:01:04]} 46. Rd3 {[%emt 0:01:19]} Kf7 {[%emt 0:00:38]} 47. f4 {[%emt 0:00:08]} gxf4+ {[%emt 0:00:04]} 48. exf4 {[%emt 0:00:05]} Re1 {[%emt 0:01:50]} 49. Rd7+ {[%emt 0:01:01]} Ke8 {[%emt 0:00:56]} 50. Rc7 {[%emt 0:00:38]} Rf1 {[%emt 0:00:32]} 51. Rc4 {[%emt 0:01:09]} Kf7 {[%emt 0:01:52]} 52. Kg2 {[%emt 0:00:42]} Ra1 {[%emt 0:01:08]} 53. Kf3 {[%emt 0:02:31]} Re1 {[%emt 0:04:28]} 54. Rc7+ {[%emt 0:00:41]} Kg8 {[%emt 0:01:03]} 55. Rd7 {[%emt 0:01:31]} Kf8 {[%emt 0:00:12]} 56. Rd3 {[%emt 0:01:58]} Kf7 {[%emt 0:00:41]} 57. f5 {[%emt 0:00:43]} Re7 {[%emt 0:04:08]} 58. Rd4 {[%emt 0:00:40]} Re1 {[%emt 0:00:26]} 59. Re4 {[%emt 0:00:16]} Ra1 {[%emt 0:01:17]} 60. Ke3 {[%emt 0:00:08]} Ra3+ {[%emt 0:00:27]} 61. Kd4 {[%emt 0:00:05]} Ra5 {[%emt 0:01:09]} 62. Kc4 {[%emt 0:00:20]} Kg7 {[%emt 0:00:39]} 63. Re8 {[%emt 0:01:49]} Kf7 {[%emt 0:03:32]} 64. Rc8 {[%emt 0:00:23]} Kg7 {[%emt 0:04:45]} 65. Kd4 {[%emt 0:00:27]} Rb5 {[%emt 0:01:15]} 66. Rc5 {[%emt 0:01:20]} Rb4+ {[%emt 0:00:25]} 67. Rc4 {[%emt 0:00:10]} Rb5 {[%emt 0:00:18]} 68. Rc6 {[%emt 0:00:19]} Ra5 {[%emt 0:00:15]} 69. Rb6 {[%emt 0:00:29]} Kf7 {[%emt 0:01:18]} 70. Rb7+ {[%emt 0:00:06]} Kf8 {[%emt 0:03:24]} 71. Rc7 {[%emt 0:00:05]} Ra1 {[%emt 0:01:33]} 72. Kd5 {[%emt 0:00:32]} Re1 {[%emt 0:00:03]} 73. Kd6 {[%emt 0:00:44]} Re2 {[%emt 0:00:06]} 74. Rh7 {[%emt 0:01:15]} Re1 {[%emt 0:00:05]} 75. Rc7 {[%emt 0:00:31]} Re2 {[%emt 0:00:05]} 76. Kd5 {[%emt 0:00:30]} Re5+ {[%emt 0:00:13]} 77. Kd4 {[%emt 0:00:43]} Re1 {[%emt 0:00:13]} 78. Rc6 {[%emt 0:00:31]} Kf7 {[%emt 0:00:05]} 79. Kd5 {[%emt 0:00:22]} Rd1+ {[%emt 0:00:18]} 80. Ke4 {[%emt 0:00:17]} Re1+ {[%emt 0:00:09]} 81. Kf3 $1 {[%emt 0:00:06]} Rf1+ {[%emt 0:00:05]} 82. Kg2 {[%emt 0:00:05]} Ra1 {[%emt 0:00:05]} 83. Rc7+ {[%emt 0:00:07]} Kf8 {[%emt 0:00:07]} 84. Kg3 {[%emt 0:00:06]} Rg1+ {[%emt 0:00:21]} 85. Kf3 {[%emt 0:00:07]} Rf1+ {[%emt 0:00:41]} 86. Ke4 {[%emt 0:00:11]} Re1+ {[%emt 0:00:05]} 87. Kd5 {[%emt 0:00:08]} Re5+ {[%emt 0:00:04]} 1/2-1/2